fUST/lending_fUST_20250615
["ID","MTS","AMOUNT","RATE_DAILY","PERIOD"]
[365851930,1749958245751,-529.32,0.00022465,4]
[365851931,1749958245761,-229.16029784,0.00022465,4]
[365851933,1749958245770,-450.50828412,0.00022465,4]
[365851934,1749958245780,-512.59,0.00022465,4]
[365851935,1749958245789,-1645.53,0.00022465,4]
[365851937,1749958245798,-497.11,0.00022465,4]
[365851938,1749958245808,-759.93,0.00022465,4]
[365851940,1749958245818,-739.48,0.00022465,4]
[365851941,1749958245827,-460.0,0.00022465,4]
[365851942,1749958245837,-503.04,0.00022465,4]
[365851943,1749958245846,-460.0,0.00022465,4]
[365851944,1749958245855,-2537.56,0.00022465,4]
[365851945,1749958245864,-582.52,0.00022465,4]
[365851946,1749958245873,-438.62835091,0.00022465,4]
[365851948,1749958245882,-238.86142643,0.00022465,4]
[365851950,1749958245890,-460.0,0.00022465,4]
[365851951,1749958245899,-460.0,0.00022465,4]
[365851952,1749958245909,-1704.62,0.00022465,4]
[365851954,1749958245918,-460.0,0.00022465,4]
[365851956,1749958245927,-492.07,0.00022465,4]
[365851957,1749958245936,-460.0,0.00022465,4]
[365851958,1749958245946,-460.0,0.00022465,4]
[365851959,1749958245956,-463.51486158,0.00022465,4]
[365851960,1749958245965,-661.35,0.00022465,4]
[365851961,1749958245975,-460.0,0.00022465,4]
[365851962,1749958245983,-460.0,0.00022465,4]
[365851963,1749958245993,-1924.96,0.00022465,4]
[365851964,1749958246003,-2024.15,0.00022465,4]
[365851965,1749958246012,-178.827068,0.00022465,4]
[365851966,1749958246021,-2655.25,0.00022465,4]
[365851967,1749958246033,-460.0,0.00022465,4]
[365851968,1749958246043,-3807.05,0.00022465,4]
[365851969,1749958246052,-756.46,0.00022466,4]
[365851970,1749958246061,-1002.19931956,0.000225,2]
[365851971,1749958246071,-1000.0,0.00022521,2]
[365851972,1749958246080,-188.7689299,0.00022521,2]
[365851973,1749958246089,-756.46,0.00022566,7]
[365851974,1749958246098,-160.0,0.00022657,2]
[365851975,1749958246107,-756.46,0.00022666,7]
[365851976,1749958246117,-197.42635491,0.000227,2]
[365851977,1749958246126,-206.3155905,0.000227,7]
[365851978,1749958246135,-501.82273507,0.00022721,2]
[365851979,1749958246144,-549.60448328,0.00022739,4]
[365851980,1749958246154,-357.04509938,0.00022739,4]
[365851981,1749958246164,-350.07941233,0.00022739,4]
[365851982,1749958246174,-251.89117839,0.00022739,4]
[365851983,1749958246184,-460.0,0.00022739,4]
[365851984,1749958246193,-460.0,0.00022739,4]
[365851985,1749958246203,-460.0,0.00022739,4]
[365851986,1749958246212,-460.0,0.00022739,4]
[365851987,1749958246221,-460.0,0.00022739,4]
[365851988,1749958246231,-599.19493693,0.00022739,4]
[365851989,1749958246240,-460.0,0.00022739,4]
[365851990,1749958246249,-460.0,0.00022739,4]
[365851991,1749958246259,-460.0,0.00022739,4]
[365851992,1749958246270,-444.35704521,0.00022739,4]
[365851993,1749958246280,-460.0,0.00022739,4]
[365851994,1749958246289,-370.0,0.00022739,4]
[365851995,1749958246299,-460.0,0.00022739,4]
[365851996,1749958246308,-460.0,0.00022739,4]
[365851997,1749958246318,-460.0,0.00022739,4]
[365851998,1749958246327,-616.02,0.00022739,4]
[365851999,1749958246337,-638.41,0.00022739,4]
[365852000,1749958246345,-460.0,0.00022739,4]
[365852001,1749958246355,-954.59,0.00022739,4]
[365852002,1749958246364,-460.0,0.00022739,4]
[365852003,1749958246373,-419.74926476,0.00022739,4]
[365852004,1749958246383,-460.0,0.00022739,4]
[365852005,1749958246392,-460.0,0.00022739,4]
[365852006,1749958246402,-616.44,0.00022739,4]
[365852007,1749958246412,-688.28,0.00022739,4]
[365852008,1749958246422,-749.99,0.00022739,4]
[365852009,1749958246432,-886.06,0.00022739,4]
[365852010,1749958246442,-460.0,0.00022739,4]
[365852011,1749958246452,-460.0,0.00022739,4]
[365852012,1749958246462,-460.0,0.00022739,4]
[365852013,1749958246471,-460.0,0.00022739,4]
[365852014,1749958246480,-270.0,0.00022739,4]
[365852015,1749958246489,-460.0,0.00022739,4]
[365852016,1749958246499,-654.26,0.00022739,4]
[365852017,1749958246508,-460.0,0.00022739,4]
[365852018,1749958246518,-446.13757203,0.00022739,4]
[365852019,1749958246527,-268.51853465,0.00022739,4]
[365852020,1749958246537,-4054.9,0.00022739,4]
[365852021,1749958246545,-460.0,0.00022739,4]
[365852022,1749958246555,-2603.06,0.00022739,4]
[365852023,1749958246564,-460.0,0.00022739,4]
[365852024,1749958246573,-161.5102222,0.00022739,4]
[365852025,1749958246582,-638.49,0.00022739,4]
[365852026,1749958246591,-524.64,0.00022739,2]
[365852027,1749958246601,-561.12,0.00022739,4]
[365852028,1749958246611,-460.0,0.00022739,4]
[365852029,1749958246620,-460.0,0.00022739,4]
[365852030,1749958246630,-3229.77,0.00022739,4]
[365852031,1749958246639,-474.04,0.00022739,4]
[365852032,1749958246648,-1426.8,0.00022739,4]
[365852033,1749958246657,-752.71,0.00022739,4]
[365852034,1749958246667,-1451.01,0.00022739,4]
[365852035,1749958246678,-460.0,0.00022739,4]
[365852036,1749958246687,-3617.63,0.00022739,4]
[365852037,1749958246697,-460.0,0.00022739,4]
[365852038,1749958246706,-460.0,0.00022739,4]
[365852039,1749958246715,-460.0,0.00022739,4]
[365852040,1749958246724,-460.0,0.00022739,4]
[365852041,1749958246734,-1623.82,0.00022739,4]
[365852042,1749958246743,-168.43747425,0.00022739,4]
[365852043,1749958246753,-475.58,0.00022739,4]
[365852044,1749958246762,-644.76,0.00022739,4]
[365852045,1749958246772,-548.79,0.00022739,4]
[365852046,1749958246781,-479.45,0.00022739,4]
[365852047,1749958246790,-460.0,0.00022739,4]
[365852048,1749958246800,-482.49,0.00022739,4]
[365852049,1749958246809,-826.52,0.00022739,4]
[365852050,1749958246818,-209.75596082,0.00022739,4]
[365852051,1749958246827,-1049.47,0.00022739,4]
[365852052,1749958246837,-1658.41,0.00022739,4]
[365852053,1749958246846,-460.0,0.00022739,4]
[365852054,1749958246855,-460.0,0.00022739,4]
[365852055,1749958246864,-460.0,0.00022739,4]
[365852056,1749958246874,-460.0,0.00022739,4]
[365852057,1749958246883,-639.67,0.00022739,4]
[365852058,1749958246892,-460.0,0.00022739,4]
[365852059,1749958246902,-473.23,0.00022739,4]
[365852060,1749958246911,-469.56,0.00022739,4]
[365852061,1749958246922,-460.0,0.00022739,4]
[365852062,1749958246931,-460.0,0.00022739,4]
[365852063,1749958246941,-529.32,0.00022739,4]
[365852064,1749958246950,-512.59,0.00022739,4]
[365852065,1749958246961,-1645.53,0.00022739,4]
[365852066,1749958246970,-497.11,0.00022739,4]
[365852067,1749958246980,-759.93,0.00022739,4]
[365852068,1749958246989,-739.48,0.00022739,4]
[365852069,1749958246999,-460.0,0.00022739,4]
[365852070,1749958247008,-503.04,0.00022739,4]
[365852071,1749958247018,-460.0,0.00022739,4]
[365852072,1749958247032,-2537.56,0.00022739,4]
[365852073,1749958247042,-582.52,0.00022739,4]
[365852074,1749958247051,-498.82172616,0.00022739,4]
[365852075,1749958247060,-460.0,0.00022739,4]
[365852076,1749958247070,-1704.62,0.00022739,4]
[365852077,1749958247079,-460.0,0.00022739,4]
[365852078,1749958247089,-492.07,0.00022739,4]
[365852079,1749958247099,-315.17162674,0.00022739,4]
[365852080,1749958247107,-460.0,0.00022739,4]
[365852081,1749958247117,-661.35,0.00022739,4]
[365852082,1749958247126,-552.39254253,0.00022739,4]
[365852083,1749958247135,-159.24976059,0.00022739,4]
[365852084,1749958247144,-1924.96,0.00022739,4]
[365852085,1749958247154,-2024.15,0.00022739,4]
[365852086,1749958247163,-2655.25,0.00022739,4]
[365852087,1749958247175,-460.0,0.00022739,4]
[365852088,1749958247184,-3807.05,0.00022739,4]
[365852089,1749958247193,-756.46,0.00022766,2]
[365852090,1749958247203,-250.0,0.00022781,2]
[365852091,1749958247212,-420.0,0.00022818,2]
[365852092,1749958247221,-756.46,0.00022866,2]
[365852093,1749958247230,-160.0,0.00022931,2]
[365852094,1749958247239,-160.0,0.00022935,2]
[365852095,1749958247251,-835.55256958,0.00022935,2]
[365852096,1749958247260,-4480.9320235,0.00022965,2]
[365852097,1749958247271,-756.46,0.00022966,3]
[365852098,1749958247280,-206.3155905,0.00022967,8]
[365852099,1749958247289,-252.66161971,0.00022973,2]
[365852100,1749958247299,-500.0,0.00022973,2]
[365852101,1749958247308,-500.0,0.00022973,2]
[365852102,1749958247318,-500.0,0.00022973,2]
[365852103,1749958247327,-158.50228441,0.00022973,2]
[365852104,1749958247336,-500.0,0.00022973,2]
[365852105,1749958247346,-502.02931313,0.00022973,2]
[365852106,1749958247357,-324.68665771,0.00022973,2]
[365852107,1749958247367,-500.0,0.00022973,2]
[365852108,1749958247377,-500.0,0.00022973,2]
[365852109,1749958247387,-500.0,0.00022973,2]
[365852110,1749958247396,-198624.26872151,0.00023,2]
[365852111,1749958247406,-1804.85,0.00023,7]
[365852112,1749958247415,-674.51,0.00023,7]
[365852113,1749958247424,-127618.16708413,0.00023,2]
[365852114,1749958247434,-172.0,0.00023,7]
[365852115,1749958247443,-5989.46906902,0.00023,2]
[365852116,1749958247452,-827.1631375,0.00023,2]
[365852117,1749958247462,-6022.6412642,0.00023,3]
[365852118,1749958247471,-45500.75441524,0.00023,20]
[365852119,1749958247481,-845.25843836,0.00023001,2]
[365852120,1749958247490,-424.47602138,0.00023006,2]
[365852121,1749958247499,-151.0,0.00023013,7]
[365852122,1749958247509,-460.0,0.00023013,4]
[365852123,1749958247518,-460.0,0.00023013,4]
[365852124,1749958247528,-211.65193267,0.00023013,4]
[365852125,1749958247538,-449.12595653,0.00023013,4]
[365852126,1749958247547,-151.0,0.00023013,7]
[365852127,1749958247557,-151.0,0.00023013,7]
[365852128,1749958247567,-460.0,0.00023013,4]
[365852129,1749958247577,-460.0,0.00023013,4]
[365852130,1749958247588,-460.0,0.00023013,4]
[365852131,1749958247597,-605.96798661,0.00023013,4]
[365852132,1749958247607,-616.02,0.00023013,4]
[365852133,1749958247616,-638.41,0.00023013,4]
[365852134,1749958247625,-460.0,0.00023013,4]
[365852135,1749958247635,-954.59,0.00023013,4]
[365852136,1749958247644,-460.0,0.00023013,4]
[365852137,1749958247654,-559.57692072,0.00023013,4]
[365852138,1749958247664,-320.0,0.00023013,4]
[365852139,1749958247674,-616.44,0.00023013,4]
[365852140,1749958247685,-151.0,0.00023013,7]
[365852141,1749958247694,-688.28,0.00023013,4]
[365852142,1749958247704,-749.99,0.00023013,4]
[365852143,1749958247713,-886.06,0.00023013,4]
[365852145,1749958247722,-151.0,0.00023013,7]
[365852146,1749958247732,-460.0,0.00023013,4]
[365852148,1749958247741,-151.0,0.00023013,7]
[365852150,1749958247750,-460.0,0.00023013,4]
[365852152,1749958247759,-151.0,0.00023013,7]
[365852154,1749958247768,-460.0,0.00023013,4]
[365852155,1749958247778,-151.0,0.00023013,7]
[365852156,1749958247788,-460.0,0.00023013,4]
[365852157,1749958247797,-460.0,0.00023013,4]
[365852158,1749958247807,-654.26,0.00023013,4]
[365852159,1749958247816,-4054.9,0.00023013,4]
[365852160,1749958247825,-210.21860742,0.00023013,4]
[365852161,1749958247834,-2603.06,0.00023013,4]
[365852162,1749958247843,-500.0,0.00023013,2]
[365852163,1749958247853,-638.49,0.00023013,4]
[365852164,1749958247861,-524.64,0.00023013,2]
[365852165,1749958247871,-561.12,0.00023013,4]
[365852166,1749958247880,-460.0,0.00023013,4]
[365852167,1749958247889,-460.0,0.00023013,4]
[365852168,1749958247899,-3229.77,0.00023013,4]
[365852169,1749958247908,-474.04,0.00023013,4]
[365852170,1749958247917,-1426.8,0.00023013,4]
[365852171,1749958247928,-752.71,0.00023013,4]
[365852172,1749958247937,-1451.01,0.00023013,4]
[365852173,1749958247947,-460.0,0.00023013,4]
[365852174,1749958247957,-3617.63,0.00023013,4]
[365852175,1749958247966,-460.0,0.00023013,4]
[365852176,1749958247977,-460.0,0.00023013,4]
[365852177,1749958247987,-460.0,0.00023013,4]
[365852178,1749958247998,-460.0,0.00023013,4]
[365852179,1749958248007,-1623.82,0.00023013,4]
[365852180,1749958248016,-475.58,0.00023013,4]
[365852181,1749958248025,-151.0,0.00023013,7]
[365852182,1749958248035,-644.76,0.00023013,4]
[365852183,1749958248047,-151.0,0.00023013,7]
[365852184,1749958248057,-548.79,0.00023013,4]
[365852185,1749958248065,-479.45,0.00023013,4]
[365852186,1749958248075,-460.0,0.00023013,4]
[365852188,1749958248084,-482.49,0.00023013,4]
[365852190,1749958248093,-826.52,0.00023013,4]
[365852192,1749958248102,-1049.47,0.00023013,4]
[365852193,1749958248111,-1658.41,0.00023013,4]
[365852195,1749958248121,-460.0,0.00023013,4]
[365852197,1749958248130,-460.0,0.00023013,4]
[365852199,1749958248140,-460.0,0.00023013,4]
[365852201,1749958248149,-460.0,0.00023013,4]
[365852203,1749958248158,-639.67,0.00023013,4]
[365852205,1749958248167,-460.0,0.00023013,4]
[365852207,1749958248178,-473.23,0.00023013,4]
[365852209,1749958248187,-469.56,0.00023013,4]
[365852211,1749958248197,-460.0,0.00023013,4]
[365852213,1749958248207,-460.0,0.00023013,4]
[365852215,1749958248216,-529.32,0.00023013,4]
[365852217,1749958248226,-512.59,0.00023013,4]
[365852218,1749958248235,-1645.53,0.00023013,4]
[365852220,1749958248244,-151.0,0.00023013,7]
[365852221,1749958248254,-497.11,0.00023013,4]
[365852222,1749958248263,-759.93,0.00023013,4]
[365852223,1749958248272,-151.0,0.00023013,7]
[365852224,1749958248282,-739.48,0.00023013,4]
[365852225,1749958248292,-460.0,0.00023013,4]
[365852226,1749958248302,-503.04,0.00023013,4]
[365852227,1749958248311,-460.0,0.00023013,4]
[365852228,1749958248321,-2537.56,0.00023013,4]
[365852229,1749958248330,-582.52,0.00023013,4]
[365852230,1749958248339,-460.0,0.00023013,4]
[365852231,1749958248349,-1704.62,0.00023013,4]
[365852232,1749958248358,-460.0,0.00023013,4]
[365852233,1749958248367,-492.07,0.00023013,4]
[365852234,1749958248376,-460.0,0.00023013,4]
[365852235,1749958248386,-661.35,0.00023013,4]
[365852236,1749958248395,-1924.96,0.00023013,4]
[365852237,1749958248515,-2024.15,0.00023013,4]
[365852238,1749958248525,-2655.25,0.00023013,4]
[365852239,1749958248535,-460.0,0.00023013,4]
[365852240,1749958248545,-3807.05,0.00023013,4]
[365852241,1749958248554,-500.0,0.0002304,2]
[365852242,1749958248564,-604.606277,0.0002304,2]
[365852243,1749958248574,-500.0,0.0002304,2]
[365852244,1749958248583,-501.8180993,0.0002304,2]
[365852245,1749958248593,-542.18707314,0.0002304,2]
[365852246,1749958248602,-500.0,0.0002304,2]
[365852247,1749958248612,-500.0,0.0002304,2]
[365852248,1749958248621,-501.65890684,0.0002304,2]
[365852249,1749958248630,-500.0,0.0002304,2]
[365852250,1749958248640,-500.0,0.0002304,2]
[365852251,1749958248650,-501.13444693,0.0002304,2]
[365852252,1749958248659,-600.0,0.0002304,2]
[365852253,1749958248668,-500.0,0.0002304,2]
[365852254,1749958248679,-500.0,0.0002304,2]
[365852255,1749958248688,-500.0,0.0002304,2]
[365852256,1749958248697,-284.08277887,0.0002304,2]
[365852257,1749958248707,-500.0,0.00023044,2]
[365852258,1749958248717,-500.0,0.00023048,2]
[365852259,1749958248726,-500.0,0.00023048,2]
[365852260,1749958248735,-756.46,0.00023066,5]
[365852261,1749958248745,-500.0,0.00023068,2]
[365852262,1749958248757,-845.25843836,0.000231,7]
[365852263,1749958248766,-76133.2,0.000231,7]
[365852264,1749958248775,-500.0,0.00023129,2]
[365852265,1749958248785,-500.0,0.0002316,2]
[365852266,1749958248795,-756.46,0.00023166,7]
[365852267,1749958248804,-206.3155905,0.00023233,8]
[365852268,1749958248814,-756.46,0.00023266,2]
[365852269,1749958248823,-151.0,0.00023287,7]
[365852270,1749958248833,-151.0,0.00023287,7]
[365852271,1749958248842,-460.0,0.00023287,4]
[365852272,1749958248851,-460.0,0.00023287,4]
[365852273,1749958248861,-460.0,0.00023287,4]
[365852274,1749958248871,-364.9419734,0.00023287,4]
[365852275,1749958248880,-460.0,0.00023287,4]
[365852276,1749958248889,-616.02,0.00023287,4]
[365852277,1749958248899,-638.41,0.00023287,4]
[365852278,1749958248908,-460.0,0.00023287,4]
[365852279,1749958248918,-954.59,0.00023287,4]
[365852280,1749958248928,-194.33849012,0.00023287,4]
[365852281,1749958248938,-616.44,0.00023287,4]
[365852282,1749958248948,-688.28,0.00023287,4]
[365852283,1749958248957,-749.99,0.00023287,4]
[365852284,1749958248967,-886.06,0.00023287,4]
[365852285,1749958248977,-460.0,0.00023287,4]
[365852286,1749958248987,-460.0,0.00023287,4]
[365852287,1749958248996,-370.0,0.00023287,4]
[365852288,1749958249006,-460.0,0.00023287,4]
[365852289,1749958249015,-460.0,0.00023287,4]
[365852290,1749958249025,-654.26,0.00023287,4]
[365852291,1749958249034,-4054.9,0.00023287,4]
[365852292,1749958249047,-2603.06,0.00023287,4]
[365852293,1749958249057,-638.49,0.00023287,4]
[365852294,1749958249066,-524.64,0.00023287,2]
[365852295,1749958249076,-561.12,0.00023287,4]
[365852296,1749958249086,-460.0,0.00023287,4]
[365852297,1749958249095,-460.0,0.00023287,4]
[365852298,1749958249105,-3229.77,0.00023287,4]
[365852299,1749958249114,-474.04,0.00023287,4]
[365852300,1749958249124,-1426.8,0.00023287,4]
[365852301,1749958249134,-752.71,0.00023287,4]
[365852302,1749958249143,-1451.01,0.00023287,4]
[365852303,1749958249153,-460.0,0.00023287,4]
[365852304,1749958249162,-3617.63,0.00023287,4]
[365852305,1749958249172,-460.0,0.00023287,4]
[365852306,1749958249183,-77.65277862,0.00023287,4]
[365852307,1749958249627,-460.0,0.00021917,4]
[365852308,1749958249638,-445.31080644,0.00021917,4]
[365852309,1749958249647,-460.0,0.00021917,4]
[365852310,1749958249658,-460.0,0.00022191,4]
[365852311,1749958249667,-411.14891983,0.00022191,4]
[365852312,1749958249678,-87.67027373,0.00022465,4]
[365852313,1749958260151,-300.0,0.00021916,2]
[365852314,1749958260171,-305.08020661,0.00021917,4]
[365852315,1749958260196,-460.0,0.00021917,4]
[365852316,1749958260217,-460.0,0.00021917,4]
[365852317,1749958260239,-460.0,0.00021917,4]
[365852318,1749958260262,-460.0,0.00021917,4]
[365852319,1749958260283,-438.14,0.00021917,4]
[365852320,1749958260426,-460.0,0.00021917,4]
[365852321,1749958260448,-460.0,0.00021917,4]
[365852322,1749958260470,-460.0,0.00021917,4]
[365852323,1749958260492,-6236.77979339,0.00021926,2]
[365852325,1749958302823,-2076.23,0.0002169,2]
[365852326,1749958302848,-203.04073996,0.000219,6]
[365852327,1749958302870,-300.0,0.00021916,2]
[365852328,1749958302893,-2190.85,0.00021917,4]
[365852329,1749958302913,-440.0,0.00021917,4]
[365852330,1749958302934,-460.0,0.00021917,4]
[365852331,1749958302957,-460.0,0.00021917,4]
[365852332,1749958302979,-460.0,0.00021917,4]
[365852333,1749958303001,-3431.52,0.00021917,4]
[365852334,1749958303025,-2702.88,0.00021917,4]
[365852335,1749958303047,-695.25,0.00021917,4]
[365852336,1749958303070,-550.219604,0.00021917,4]
[365852337,1749958303091,-188.00965604,0.00021917,4]
[365852338,1749958337571,-300.0,0.00021916,2]
[365852339,1749958337594,-2871.5,0.00021917,4]
[365852340,1749958337615,-460.0,0.00021917,4]
[365852341,1749958337647,-404.21042602,0.00021917,4]
[365852342,1749958337669,-350.0,0.00021917,4]
[365852343,1749958337692,-614.28957398,0.00021917,4]
[365852344,1749958358490,4156.66207143,0.00025006,60]
[365852346,1749958700568,197.242897,0.00013699,2]
[365852354,1749959227138,-973.8161313,0.00019986,2]
[365852355,1749959227159,-166.71607011,0.00020087,2]
[365852356,1749959227180,-197.242897,0.00020187,2]
[365852357,1749959227200,-284.8216315,0.00020771,2]
[365852358,1749959227219,-161.72354,0.00020878,2]
[365852359,1749959227239,-150.0,0.00020913,2]
[365852360,1749959227259,-500.0,0.00021154,2]
[365852361,1749959227280,-2091.19,0.00021664,2]
[365852362,1749959227300,-150.55578605,0.00021817,2]
[365852363,1749959227329,-214.91520192,0.000219,6]
[365852364,1749959227351,-300.0,0.00021913,2]
[365852365,1749959227373,-1200.0,0.00021914,2]
[365852366,1749959227393,-300.0,0.00021914,2]
[365852367,1749959227415,-500.0,0.00021915,2]
[365852368,1749959227436,-508.12154889,0.00021915,2]
[365852369,1749959227457,-561.49033211,0.00021915,2]
[365852370,1749959227476,-486.62267522,0.00021915,2]
[365852371,1749959228117,-13.37732478,0.00021915,2]
[365852372,1749959228138,-329.64666147,0.00021915,2]
[365852373,1749959233131,-170.35333853,0.00021915,2]
[365852374,1749959233150,-2.97518308,0.00021915,2]
[365852375,1749959234073,-209.70919267,0.00021915,2]
[365852376,1749959241093,-1895.44305571,0.00021677,2]
[365852377,1749959253074,-169.12694429,0.00021677,2]
[365852378,1749959253097,-151.0420439,0.00021915,2]
[365852379,1749959349086,-156.8,0.00019815,2]
[365852381,1749959379204,-293.72853395,0.00019012,2]
[365852399,1749959432485,-2203.43246263,0.00019012,2]
[365852400,1749959432494,-46.63010111,0.00019815,2]
[365852401,1749959432504,-500.0,0.00021154,2]
[365852402,1749959432514,-168.0,0.0002164,2]
[365852403,1749959432523,-2038.3,0.00021679,2]
[365852404,1749959432533,-150.55578601,0.00021817,2]
[365852407,1749959432543,-207.75136203,0.000219,6]
[365852409,1749959432552,-300.0,0.00021915,2]
[365852411,1749959432561,-136.27358035,0.00021915,2]
[365852413,1749959432570,-500.0,0.00021915,2]
[365852415,1749959432581,-500.0,0.00021916,2]
[365852417,1749959432590,-500.0,0.00021916,2]
[365852419,1749959432599,-500.0,0.00021916,2]
[365852421,1749959432609,-500.0,0.00021916,2]
[365852423,1749959432618,-500.0,0.00021916,2]
[365852425,1749959432628,-500.0,0.00021916,2]
[365852427,1749959432637,-500.0,0.00021916,2]
[365852429,1749959432646,-500.0,0.00021916,2]
[365852431,1749959432655,-500.0,0.00021916,2]
[365852432,1749959432668,-500.0,0.00021916,2]
[365852433,1749959432678,-500.0,0.00021916,2]
[365852434,1749959432687,-500.0,0.00021916,2]
[365852435,1749959432697,-500.0,0.00021916,2]
[365852436,1749959432706,-500.0,0.00021916,2]
[365852437,1749959432715,-500.0,0.00021916,2]
[365852438,1749959432725,-500.0,0.00021916,2]
[365852439,1749959432734,-500.0,0.00021916,2]
[365852440,1749959432743,-500.0,0.00021916,2]
[365852441,1749959432752,-500.0,0.00021916,2]
[365852442,1749959432762,-500.0,0.00021916,2]
[365852443,1749959432771,-870.67061775,0.00021916,2]
[365852444,1749959432780,-870.67061775,0.00021916,2]
[365852445,1749959432790,-870.67061775,0.00021916,2]
[365852446,1749959432799,-870.67061775,0.00021916,2]
[365852447,1749959432809,-870.67061775,0.00021916,2]
[365852448,1749959432818,-870.67061775,0.00021916,2]
[365852449,1749959432828,-870.67061775,0.00021916,2]
[365852450,1749959432837,-870.67061775,0.00021916,2]
[365852451,1749959432846,-870.67061775,0.00021916,2]
[365852452,1749959432856,-500.0,0.00021917,4]
[365852453,1749959432865,-214.98063941,0.00021917,4]
[365852454,1749959432875,-402.3643433,0.00021917,4]
[365852455,1749959432885,-550.11216202,0.00021917,4]
[365852456,1749959432894,-416.29344934,0.00021917,4]
[365852457,1749959432903,-468.30236844,0.00021917,4]
[365852458,1749959432912,-385.85264385,0.00021917,4]
[365852459,1749959432921,-387.65612214,0.00021917,4]
[365852460,1749959432930,-475.11962312,0.00021917,4]
[365852461,1749959432939,-460.0,0.00021917,4]
[365852462,1749959432949,-460.0,0.00021917,4]
[365852463,1749959432958,-345.7580872,0.00021917,4]
[365852464,1749959432967,-391.20440668,0.00021917,4]
[365852465,1749959432977,-460.0,0.00021917,4]
[365852466,1749959432986,-460.0,0.00021917,4]
[365852467,1749959432996,-403.63953702,0.00021917,4]
[365852468,1749959433005,-460.0,0.00021917,4]
[365852469,1749959433014,-460.0,0.00021917,4]
[365852470,1749959433024,-460.0,0.00021917,4]
[365852471,1749959433033,-559.36562291,0.00021917,4]
[365852472,1749959433043,-460.0,0.00021917,4]
[365852473,1749959433051,-460.0,0.00021917,4]
[365852474,1749959433061,-460.0,0.00021917,4]
[365852475,1749959433071,-460.0,0.00021917,4]
[365852476,1749959433080,-460.0,0.00021917,4]
[365852477,1749959433089,-566.17,0.00021917,4]
[365852478,1749959433099,-606.68,0.00021917,4]
[365852479,1749959433108,-460.0,0.00021917,4]
[365852480,1749959433117,-460.0,0.00021917,4]
[365852481,1749959433127,-395.5150341,0.00021917,4]
[365852482,1749959433136,-885.28,0.00021917,4]
[365852483,1749959433145,-500.0,0.00021917,4]
[365852484,1749959433154,-460.0,0.00021917,4]
[365852485,1749959433164,-194.07313543,0.00021917,4]
[365852486,1749959433173,-252.99021756,0.00021917,4]
[365852487,1749959433183,-460.0,0.00021917,4]
[365852488,1749959433192,-460.0,0.00021917,4]
[365852489,1749959433202,-460.0,0.00021917,4]
[365852490,1749959433212,-409.88605255,0.00021917,4]
[365852491,1749959433221,-460.0,0.00021917,4]
[365852492,1749959433230,-607.97,0.00021917,4]
[365852493,1749959433240,-460.0,0.00021917,4]
[365852494,1749959433249,-403.14764831,0.00021917,4]
[365852495,1749959433259,-460.0,0.00021917,4]
[365852496,1749959433268,-460.0,0.00021917,4]
[365852497,1749959433278,-460.0,0.00021917,4]
[365852498,1749959433287,-442.37734844,0.00021917,4]